Cogmind - Beta 17 @@@ ROGUE MODE // 2026.08.03 @ 18:38:27 Player: LandRaider Result: Destroyed by G-73 Enforcer with Phase Gun Performance ------------- Evolutions (6) 3000 Regions Visited (15) 3000 Robots Destroyed (58) 290 Value Destroyed (2654) 2654 Prototype IDs (3) 60 Alien Tech Used (1) 200 Bonus (1443) 1443 TOTAL SCORE: 10647 Bonus ------- Follower Combat Kills 474 Entered DSFs 500 Met Imprinter 300 Was Imprinted 300 Friendly Fire -131 Cogmind --------- Core Integrity 0/1150 Matter 297/300 Energy 100/100 System Corruption 0% Temperature Cool (0) Movement Core (200) Ox3 Location -4/Factory Parts ------- > --- POWER (3) -------- (None) > --- PROPULSION (4) --- (None) > --- UTILITY (8) ------ Improved Heat Sink Advanced Signal Interpreter Quantum Capacitor > --- WEAPON (5) ------- Force Lance > --- INVENTORY (5) ---- Improved Heavy Treads Medium Storage Unit Improved Component Analysis Suite Improved Remote Datajack Peak State ------------ > --- POWER ------------ Light Antimatter Reactor Particle Reactor Light Quantum Reactor > --- PROPULSION ------- Armored Treads Improved Gyrokinetic Inverter Improved Gyrokinetic Inverter Improved Gyrokinetic Inverter > --- UTILITY ---------- Advanced Heat Sink Advanced Heat Sink Large Storage Unit Advanced Weight Redist. System Advanced Signal Interpreter Advanced Recoil Stabilizer Improved Particle Charger Dynamic Insulation System > --- WEAPON ----------- Heavy Wave Gun Heavy Wave Gun Phase Cannon Gauss Rifle Enhanced Gauss Cannon > --- INVENTORY -------- Improved Deuterium Engine Improved Deuterium Engine Light Angular Momentum Engine Compact Wheel Medium Storage Unit Advanced Signal Interpreter Improved Terrain Scan Processor Improved Reaction Control System Improved Component Analysis Suite Heavy Wave Gun Heavy Wave Gun Improved Remote Datajack Falx Force Lance [Rating: 119] Favorites ----------- Power Light Angular Momentum Engine Engine Light Angular Momentum Engine Power Core Micro Nuclear Core Reactor Particle Reactor Propulsion Compact Wheel Treads Medium Treads Leg Aluminum Leg Wheel Compact Wheel Hover Unit Improved Gyrokinetic Inverter Flight Unit VTOL Module Utility Advanced Signal Interpreter Device Advanced Weight Redist. System Storage Large Storage Unit Processor Advanced Signal Interpreter Protection Improved Medium Armor Plating Weapon Gauss Rifle Energy Gun High-powered Shock Rifle Energy Cannon Phase Cannon Ballistic Gun Gauss Rifle Ballistic Cannon Enhanced Gauss Cannon Special Weapon Improved Remote Datajack Slashing Weapon Makeshift Sword Piercing Weapon CR-A16's Pointy Stick Build | -11 -10 -10 -10 -9 -8 -8 -7 -7 -6 -6 -6 -6 -5 -5 -4 ------- Run | Yrd Mat Min Exi Min Mat Sto Fac DSF Fac Low Low Zio Pro Fac Fac Slots Evolved 12 | . . . . . 4 . 2 . 2 . . . . 2 2 Power 1 | . . . . . . . . . 1 . . . . . . Propulsion 2 | . . . . . 1 . 1 . . . . . . . . Utility 6 | . . . . . 2 . . . 1 . . . . 2 1 Weapon 3 | . . . . . 1 . 1 . . . . . . . 1 Parts Attached 108 | 6 4 1 1 4 4 8 2 5 19 7 2 2 14 1 28 Power 19 | 1 . . . 1 . 2 . . 3 2 1 . 3 . 6 Engine 12 | 1 . . . 1 . 1 . . 3 1 1 . 3 . 1 Core 4 | . . . . . . 1 . . . 1 . . . . 2 Reactor 3 | . . . . . . . . . . . . . . . 3 Propulsion 24 | 2 2 . . . . 2 . 2 3 3 . . 3 . 7 Treads 7 | . . . . . . . . . 1 1 . . 3 . 2 Leg 2 | 2 . . . . . . . . . . . . . . . Wheel 10 | . 2 . . . . 2 . 2 2 1 . . . . 1 Hover 4 | . . . . . . . . . . . . . . . 4 Flight 1 | . . . . . . . . . . 1 . . . . . Utility 31 | 1 1 1 1 . 2 4 2 . 7 . . . 2 1 9 Device 21 | . . 1 1 . 1 2 2 . 4 . . . 1 1 8 Storage 3 | 1 1 . . . . . . . 1 . . . . . . Processor 3 | . . . . . . . . . 2 . . . . . 1 Hackware . | . . . . . . . . . . . . . . . . Protection 4 | . . . . . 1 2 . . . . . . 1 . . Artifact . | . . . . . . . . . . . . . . . . Weapon 34 | 2 1 . . 3 2 . . 3 6 2 1 2 6 . 6 Energy Gun 12 | 1 . . . . . . . . 5 . . 1 . . 5 Energy Cannon 6 | . . . . . . . . 3 1 . . . 2 . . Ballistic Gun 8 | 1 1 . . 1 2 . . . . 1 . . 2 . . Ballistic Cannon 1 | . . . . . . . . . . . . . 1 . . Launcher . | . . . . . . . . . . . . . . . . Special Weapon 2 | . . . . 1 . . . . . . 1 . . . . Impact Weapon . | . . . . . . . . . . . . . . . . Slashing Weapon 3 | . . . . 1 . . . . . 1 . . 1 . . Piercing Weapon 2 | . . . . . . . . . . . . 1 . . 1 Special Melee Weapon . | . . . . . . . . . . . . . . . . Unidentified Prototypes 4 | . . . . . 1 . . . . 1 . 1 . . 1 Parts Lost 75 | . . . . 3 . 14 . 5 6 4 1 . 10 1 31 Power 16 | . . . . 1 . 3 . . 1 2 . . 1 . 8 Propulsion 15 | . . . . 1 . 4 . . 2 1 . . 2 1 4 Utility 21 | . . . . 1 . 4 . 1 1 . . . 3 . 11 Weapon 23 | . . . . . . 3 . 4 2 1 1 . 4 . 8 Highest Loss Streak 18 | . . . . 2 . 10 . 3 4 4 1 . 7 1 18 To Critical Strikes 3 | . . . . . . 1 . . . . . . . . 2 Average Backups 11 | 1 5 9 8 8 7 8 5 7 9 14 14 14 13 14 10 Power . | . 1 1 1 . . . . . . . . . 1 3 1 Propulsion . | . 2 2 2 2 . . . 1 . . . . . 2 1 Utility 7 | . 1 3 3 3 4 8 5 5 6 9 9 10 9 9 5 Weapon 2 | . 1 2 2 3 2 . . . 1 4 4 4 1 . 1 Tool/Special . | . . . . . . . . . . . . . . . . Unused Backups 11 | . . 1 1 . 1 . . . 1 . . . . 1 6 Power . | . . . . . . . . . . . . . . . . Propulsion 1 | . . . . . . . . . . . . . . . 1 Utility 8 | . . . 1 . 1 . . . 1 . . . . 1 4 Weapon 1 | . . 1 . . . . . . . . . . . . . Tool/Special 1 | . . . . . . . . . . . . . . . 1 Average Slot Usage (%) 87 | . 85 93 100 96 87 77 35 52 71 92 98 99 83 87 76 Engine 11 | . 14 14 14 13 9 5 . . 7 8 10 12 17 16 3 Core 1 | . . . . . . 1 . . . 3 6 6 . . . Treads 7 | . . . . . . . . . 1 10 12 12 14 19 9 Leg 1 | . . . . . 17 13 . . . . . . . . . Wheel 12 | . 27 28 28 25 9 7 . 14 14 12 12 12 6 . 1 Device 15 | . . 7 14 13 8 13 20 17 18 19 18 18 14 18 22 Storage 7 | . 14 14 14 14 9 9 7 7 6 6 6 6 6 5 4 Processor 4 | . . . . . . . . . 5 6 6 6 6 5 6 Energy Gun 7 | . 14 14 14 12 2 1 . . 14 10 6 5 1 . 7 Energy Cannon 1 | . . . . . . . . 10 . 6 1 . 1 5 2 Ballistic Gun 6 | . 14 14 14 6 8 12 . . . 4 6 6 6 5 2 Special Weapon 2 | . . . . 1 6 1 . . . . 4 5 1 . . Slashing Weapon 2 | . . . . 7 9 9 7 3 . . 6 . 1 5 . Peak Build Rating 119 | 6 7 8 14 17 25 32 14 39 64 64 66 71 73 75 119 Average Rating 48 | 4 6 7 12 15 21 26 13 30 44 57 64 65 57 73 87 On Entrance 32 | . 6 7 8 14 9 25 8 14 24 64 59 66 66 73 75 Avg Prop Armor Cover (%) 11 | . . . . . 6 8 . 13 7 11 14 14 7 . 13 Naked Turns . | . . . . . . . . . . . . . . . . Heaviest Build 107 | 11 17 18 22 23 26 40 16 36 62 62 66 67 82 83 107 Greatest Support 121 | 20 32 32 32 32 20 38 9 62 66 53 41 41 121 121 113 Greatest Overweight (x) 9 | 2 . . . 1 1 4 1 1 9 3 1 1 2 . 5 Average Overweight (x) . | . . . . . 1 1 1 . . 1 1 1 . . . Largest Inventory Capacity 15 | 8 10 10 10 10 10 10 10 10 15 15 15 15 15 15 15 Average Capacity 13 | 7 9 10 10 10 10 10 10 10 11 15 15 15 15 15 13 Most Carried 15 | 4 10 10 10 10 10 10 6 10 15 15 15 15 15 15 15 Average Carried 11 | 2 6 9 9 9 7 9 5 7 9 14 14 14 13 14 11 Final Capacity 15 | 8 10 10 10 10 10 10 10 10 15 15 15 15 15 15 5 Final Carried 15 | 4 10 10 10 10 10 7 5 10 15 13 14 15 14 15 5 Scrap Suit Usage (%) 6 | . . . . . 98 77 . . . . . . . . . Parts Cannibalized 3 | . . . . . . 3 . . . . . . . . . Class Distribution -------------------- 36% | Mutant 26% | Scavenger-Assassin 11% | Scavenger-Mutant 10% | Scavenger-Skirmisher 8% | Scavenger-Tank 5% | Scavenger-Gunner Dominant Class ---------------- Mutant | -10/Materials Mutant | -10/Mines Mutant | -10/Exiles Mutant | -9/Mines Mutant | -8/Materials Mutant | -8/Storage Mutant | -7/Factory Skirmisher | -7/DSF Mutant | -6/Factory Scavenger-Skirmisher | -6/Lower Caves Scavenger-Assassin | -6/Lower Caves Scavenger-Assassin | -6/Zion Scavenger-Mutant | -5/Proximity Caves Scavenger-Tank | -5/Factory Scavenger-Gunner | -4/Factory Resources | -11 -10 -10 -10 -9 -8 -8 -7 -7 -6 -6 -6 -6 -5 -5 -4 ----------- Run | Yrd Mat Min Exi Min Mat Sto Fac DSF Fac Low Low Zio Pro Fac Fac Matter Collected 2104 | 260 . 46 . 88 55 357 . 4 175 134 89 44 357 61 434 Remotely . | . . . . . . . . . . . . . . . . Salvage Created 3005 | . . 22 . 140 . 512 . . 533 101 64 . 691 104 838 Parts 129 | . . 3 . 3 . 27 . . 21 7 4 . 32 3 29 Haulers Intercepted 3 | . . . . . . 2 . . 1 . . . . . . Recyclers Shooed 3 | . . . . . . . . . 1 . . . . . 2 Parts Field Recycled . | . . . . . . . . . . . . . . . . Retrieved Matter . | . . . . . . . . . . . . . . . . Parts Self-Destructed 40 | . . . . . . . . . . 6 1 . 33 . . Prevented 15 | . . . . . . . . . . . . . 15 . . Parts Restored . | . . . . . . . . . . . . . . . . Kills | -11 -10 -10 -10 -9 -8 -8 -7 -7 -6 -6 -6 -6 -5 -5 -4 ------- Run | Yrd Mat Min Exi Min Mat Sto Fac DSF Fac Low Low Zio Pro Fac Fac Combat Hostiles Destroyed 49 | . . 2 . 5 . 6 . . 9 4 1 . 9 2 11 Melee 4 | . . . . 2 . . . . . . 1 . . . 1 Guns 38 | . . 2 . 3 . 6 . . 9 4 . . 6 1 7 Cannons 6 | . . . . . . . . . . . . . 3 1 2 Classes Destroyed 15 | . . 1 . 2 . 5 . . 2 . 1 . 3 . 1 Tunneler 1 | . . . . . . . . . . . . . . . 1 Hauler 3 | . . . . . . 2 . . 1 . . . . . . Recycler 1 | . . . . . . 1 . . . . . . . . . Drone 2 | . . . . . . 2 . . . . . . . . . Watcher 5 | . . . . . . . . . 1 . . . . . 4 Swarmer 10 | . . 2 . . . . . . 4 4 . . . . . Grunt 21 | . . . . 3 . 2 . . 3 . . . 3 2 8 Duelist 2 | . . . . . . . . . . . . . 2 . . Protector 1 | . . . . . . . . . . . . . 1 . . Sentry 4 | . . . . . . 2 . . . . . . 1 . 1 Hunter 3 | . . . . . . 2 . . . . . . 1 . . Programmer 4 | . . . . . . . . . 2 . . . . . 2 Behemoth 1 | . . . . . . . . . . . . . 1 . . Assembled 2 | . . . . 2 . . . . . . . . . . . Mutant 2 | . . . . . . . . . . . 1 . 1 . . Best Kill Streak 6 | . . 2 . 2 . 2 . . 6 4 1 . 3 2 3 Combat Bots Only 5 | . . 2 . 2 . 2 . . 5 4 1 . 3 2 2 Max Kills in Single Turn 3 | . . 1 . 1 . 1 . . 1 1 1 . 1 1 3 Gunslinging . | . . . . . . . . . . . . . . . . Exploded . | . . . . . . . . . . . . . . . . Melee 1 | . . . . 1 . . . . . . 1 . . . 1 Uniques/NPCs Destroyed . | . . . . . . . . . . . . . . . . Combat | -11 -10 -10 -10 -9 -8 -8 -7 -7 -6 -6 -6 -6 -5 -5 -4 -------- Run | Yrd Mat Min Exi Min Mat Sto Fac DSF Fac Low Low Zio Pro Fac Fac Hostile Shots Fired 664 | . . 3 . 17 5 184 . 17 66 31 2 . 87 15 237 Missed 179 | . . . . 5 4 49 . 3 16 6 . . 27 5 64 Hits 485 | . . 3 . 12 1 135 . 14 50 25 2 . 60 10 173 Melee 3 | . . . . . . . . . . . . . 3 . . Projectile 482 | . . 3 . 12 1 135 . 14 50 25 2 . 57 10 173 Critical Strikes 36 | . . . . . . 10 . 2 3 . . . 4 . 17 Part Disruptions 2 | . . . . 1 . . . . 1 . . . . . . Damage Taken 10303 | . . 22 . 452 14 2179 . 522 914 374 28 . 1397 156 4245 Core 2150 | . . . . 210 . 380 . 122 116 26 . . 125 . 1171 Absorbed by Shields 364 | . . . . . . 43 . . . . . . 122 56 143 Regen/Repaired (Parts) 26 | . . . . . . 26 . . . . . . . . . Core Remaining (%) 66 | 100 . . . 16 . 30 . 82 . . . . 68 100 . Volleys Fired 228 | . . 2 . 22 . 53 . . 37 8 4 . 36 6 60 Largest 5 | . . 2 . 2 . 2 . . 3 4 1 . 3 3 5 Hottest 336 | . . 70 . 100 . 100 . . 198 273 28 . 178 160 336 Shots Fired 424 | . . 4 . 28 . 80 . . 58 12 5 . 85 18 134 Gun 341 | . . 4 . 18 . 78 . . 58 11 2 . 63 6 101 Cannon 67 | . . . . . . . . . . 1 . . 21 12 33 Launcher . | . . . . . . . . . . . . . . . . Special 16 | . . . . 10 . 2 . . . . 3 . 1 . . Kinetic 171 | . . 2 . 6 . 78 . . . 6 2 . 46 12 19 Thermal 226 | . . 2 . 22 . 2 . . 53 4 . . 22 6 115 Explosive . | . . . . . . . . . . . . . . . . Electromagnetic 23 | . . . . . . . . . 5 2 . . 16 . . Robot Hit Streak 17 | . . 2 . 11 . 17 . . 17 2 1 . 14 6 8 Robot Miss Streak 6 | . . 1 . 2 . 3 . . 3 4 1 . 5 2 6 Penetration Max 1 | . . . . . . 1 . . . . . . 1 . . Secondary Targets 6 | . . . . . . 2 . . 2 . . . 2 . . Max Gunslinging Chain 1 | . . . . . . 1 . . 1 . . . 1 . . Shots Hit Robots 265 | . . 2 . 16 . 61 . . 47 4 4 . 48 11 72 Core Hits 111 | . . 2 . 8 . 19 . . 20 5 2 . 19 5 31 Critical Kills 2 | . . 1 . . . 1 . . . . . . . . . Critical Parts Destroyed . | . . . . . . . . . . . . . . . . Critical Strikes 12 | . . 1 . 2 . 1 . . . . . . 1 . 7 Burn 6 | . . . . 2 . . . . . . . . . . 4 Destroy 2 | . . 1 . . . 1 . . . . . . . . . Blast 4 | . . . . . . . . . . . . . 1 . 3 Melee Attacks 52 | . . . . 22 7 6 . . . 5 3 . 1 1 7 Impact . | . . . . . . . . . . . . . . . . Slashing 44 | . . . . 22 7 6 . . . 5 3 . . 1 . Piercing 8 | . . . . . . . . . . . . . 1 . 7 Sneak Attacks . | . . . . . . . . . . . . . . . . Combat Hostiles . | . . . . . . . . . . . . . . . . Follow-up Attacks . | . . . . . . . . . . . . . . . . Damage Inflicted 7003 | . . 27 . 275 . 1107 . . 1031 157 72 . 1135 312 2887 Guns 5227 | . . 27 . 173 . 1107 . . 1031 130 . . 867 78 1814 Cannons 1107 | . . . . . . . . . . 27 . . 268 234 578 Explosions 424 | . . . . . . . . . . . . . . . 424 Melee 245 | . . . . 102 . . . . . . 72 . . . 71 Ramming . | . . . . . . . . . . . . . . . . Kinetic 2470 | . . 14 . 60 . 1107 . . . 74 . . 640 186 389 Thermal 3479 | . . 13 . 113 . . . . 916 37 . . 271 126 2003 Explosive 424 | . . . . . . . . . . . . . . . 424 Electromagnetic 385 | . . . . . . . . . 115 46 . . 224 . . Impact . | . . . . . . . . . . . . . . . . Slashing 174 | . . . . 102 . . . . . . 72 . . . . Piercing 71 | . . . . . . . . . . . . . . . 71 Highest Corruption 13 | . . . . 13 1 5 . . 1 1 1 1 . . . Average Corruption 2 | . . . . 9 1 4 . . 1 1 1 1 . . . Corruption Purged . | . . . . . . . . . . . . . . . . Corruption Blocked . | . . . . . . . . . . . . . . . . Effects 29 | . . . . 5 . 9 . . 4 4 7 . . . . Message Errors 5 | . . . . 1 . 1 . . . 2 1 . . . . Matter Fused 6 | . . . . 1 . 2 . . . . 3 . . . . Heat Flow Errors 3 | . . . . 1 . . . . 1 . 1 . . . . Energy Discharges 6 | . . . . 1 . 2 . . 1 1 1 . . . . Parts Rejected 1 | . . . . 1 . . . . . . . . . . . Data Loss (minor) 4 | . . . . . . 3 . . 1 . . . . . . Data Loss (major) 3 | . . . . . . 1 . . 1 1 . . . . . Misfires 1 | . . . . . . . . . . . 1 . . . . Overload Shots . | . . . . . . . . . . . . . . . . Overflow Damage 154 | . . . . 39 . . . . . 2 . . . 8 105 Projectiles 11 | . . . . . . . . . . 2 . . . 8 1 Explosions 104 | . . . . . . . . . . . . . . . 104 Melee 39 | . . . . 39 . . . . . . . . . . . Knockbacks 2 | . . . . . . . . . . . . . . 1 1 Impact . | . . . . . . . . . . . . . . . . Kinetic 2 | . . . . . . . . . . . . . . 1 1 Secondary . | . . . . . . . . . . . . . . . . Self-Inflicted Damage 183 | . . . . . . . . . . . . . . . 183 Shots 3 | . . . . . . . . . . . . . . . 3 Rammed . | . . . . . . . . . . . . . . . . Targets Rammed . | . . . . . . . . . . . . . . . . Kicked . | . . . . . . . . . . . . . . . . Crushed . | . . . . . . . . . . . . . . . . Highest Temperature 807 | . . 38 . 238 . 33 . . 222 231 132 . 270 163 807 Average Temperature 158 | . . 22 . 73 . 10 . . 56 129 72 . 112 65 273 Received Heat Transfer 2471 | . . . . 137 9 644 . 9 297 . 20 . 236 48 1071 Effects 89 | . . . . . . . . . . . . . 3 . 86 Shutdowns 28 | . . . . . . . . . . . . . . . 28 Energy Bleed 8 | . . . . . . . . . . . . . 1 . 7 Interference 15 | . . . . . . . . . . . . . 2 . 13 Matter Decay 3 | . . . . . . . . . . . . . . . 3 Short Circuit 4 | . . . . . . . . . . . . . . . 4 Damage (minor) 4 | . . . . . . . . . . . . . . . 4 Damage (major) 24 | . . . . . . . . . . . . . . . 24 Damage (core) 3 | . . . . . . . . . . . . . . . 3 Siege Activations . | . . . . . . . . . . . . . . . . Martial Activations . | . . . . . . . . . . . . . . . . Shielding Activations . | . . . . . . . . . . . . . . . . Robots Disrupted . | . . . . . . . . . . . . . . . . Combat Hostiles . | . . . . . . . . . . . . . . . . Robots Corrupted . | . . . . . . . . . . . . . . . . Combat Hostiles . | . . . . . . . . . . . . . . . . Parts Fried 4 | . . . . . . . . . . . . . 4 . . Impact Corruptions . | . . . . . . . . . . . . . . . . Robots Melted 1 | . . . . . . . . . . . . . . . 1 Combat Hostiles 1 | . . . . . . . . . . . . . . . 1 Parts Melted 13 | . . 1 . 2 . . . . 6 . . . . . 4 Heat Transferred 5367 | . . 37 . 481 . . . . 1628 74 . . 372 148 2627 Parts Sabotaged . | . . . . . . . . . . . . . . . . Parts Stolen . | . . . . . . . . . . . . . . . . Parts Stripped . | . . . . . . . . . . . . . . . . Power Chain Reactions . | . . . . . . . . . . . . . . . . Alert | -11 -10 -10 -10 -9 -8 -8 -7 -7 -6 -6 -6 -6 -5 -5 -4 ------- Run | Yrd Mat Min Exi Min Mat Sto Fac DSF Fac Low Low Zio Pro Fac Fac Maximum Alert Level 1 | . . . . . . . . . . . . . . . 1 Low Security (%) 98 | 100 100 100 . 100 100 100 100 100 100 . . . . 100 94 Level 1 1 | . . . . . . . . . . . . . . . 5 Level 2 . | . . . . . . . . . . . . . . . . Level 3 . | . . . . . . . . . . . . . . . . Level 4 . | . . . . . . . . . . . . . . . . Level 5 . | . . . . . . . . . . . . . . . . High Security . | . . . . . . . . . . . . . . . . Max Security . | . . . . . . . . . . . . . . . . Peak Influence 227 | . . 55 . 55 50 70 . 20 116 . . . . 52 227 Initial 16 | . . . . . . 14 . . . . . . . 9 16 Average 28 | . . 8 . 8 9 15 . 8 31 . . . . 31 74 Influence Increases 2147 | . . 67 . 95 104 239 . 30 233 90 . . 543 75 671 Destroy 0b10 Robot/C 1140 | . . 40 . 60 40 120 . . 180 80 . . 360 40 220 Destroy 0b10 Robot/NC 55 | . . . . . . 15 . . 10 . . . 5 . 25 Destroy Leader 254 | . . 10 . 10 20 54 . . 42 10 . . 50 10 48 Allied During Kill 133 | . . . . . 4 1 . . . . . . 128 . . Successful Hack 5 | . . 2 . . 3 . . . . . . . . . . Disable Machine 120 | . . . . . 15 30 . . . . . . . 15 60 Destroy Structure 200 | . . . . 10 7 4 . . 1 . . . . 10 168 Lose Combat Pursuer 240 | . . 15 . 15 15 15 . 30 . . . . . . 150 Influence Decreases 2070 | . . 67 . 94 70 274 . 30 216 107 . . 527 57 628 Entered New Map 55 | . . . . . 1 21 . . . 8 . . . 7 18 Time Decay 1313 | . . 67 . 94 49 143 . . 176 69 . . 367 40 308 Lost Part 505 | . . . . . . 33 . 30 40 30 . . 60 10 302 Lost Ally 197 | . . . . . 20 77 . . . . . . 100 . . Squads Dispatched 13 | . . . . . 1 3 . 1 3 . . . 1 1 3 Investigation 3 | . . . . . 1 1 . . 1 . . . . . . Extermination 2 | . . . . . . . . . 1 . . . . . 1 Reinforcement 7 | . . . . . . 2 . 1 1 . . . . 1 2 Assault 1 | . . . . . . . . . . . . . 1 . . Garrison . | . . . . . . . . . . . . . . . . Intercept . | . . . . . . . . . . . . . . . . Searches Triggered . | . . . . . . . . . . . . . . . . Construction Impeded 2 | . . . . . . . . . . . . . . . 2 Haulers Reinforced . | . . . . . . . . . . . . . . . . Active Scanning Responses . | . . . . . . . . . . . . . . . . Cargo Convoy Interrupts . | . . . . . . . . . . . . . . . . Stealth | -11 -10 -10 -10 -9 -8 -8 -7 -7 -6 -6 -6 -6 -5 -5 -4 --------- Run | Yrd Mat Min Exi Min Mat Sto Fac DSF Fac Low Low Zio Pro Fac Fac Distress Signals 3 | . . . . . . 2 . . 1 . . . . . . Communications Jammed . | . . . . . . . . . . . . . . . . Distress Signals . | . . . . . . . . . . . . . . . . Times Spotted 116 | . 1 3 . 8 5 20 . 4 13 4 1 . 20 5 32 Peak Tracking Total 10 | . 1 3 . 5 3 10 . 3 4 4 1 . 7 2 9 Tactical Retreats 13 | . . 1 . 2 1 1 . 2 . . . . . . 6 Traps | -11 -10 -10 -10 -9 -8 -8 -7 -7 -6 -6 -6 -6 -5 -5 -4 ------- Run | Yrd Mat Min Exi Min Mat Sto Fac DSF Fac Low Low Zio Pro Fac Fac Traps Triggered 4 | . . . . . . 2 . 2 . . . . . . . Indirectly . | . . . . . . . . . . . . . . . . Trap Hack Attempts . | . . . . . . . . . . . . . . . . Triggered . | . . . . . . . . . . . . . . . . Disarmed . | . . . . . . . . . . . . . . . . Reprogrammed . | . . . . . . . . . . . . . . . . Reused . | . . . . . . . . . . . . . . . . Traps Extracted . | . . . . . . . . . . . . . . . . Installed . | . . . . . . . . . . . . . . . . Triggered . | . . . . . . . . . . . . . . . . Machines | -11 -10 -10 -10 -9 -8 -8 -7 -7 -6 -6 -6 -6 -5 -5 -4 ---------- Run | Yrd Mat Min Exi Min Mat Sto Fac DSF Fac Low Low Zio Pro Fac Fac Machines Disabled 9 | . . . . . 1 2 . . . . 1 . . 1 4 Max in Single Turn 4 | . . . . . . 1 . . . . 1 . . 1 4 Machines Repaired . | . . . . . . . . . . . . . . . . Machines Dismantled . | . . . . . . . . . . . . . . . . Machines Sabotaged . | . . . . . . . . . . . . . . . . Overloaded Fab Kills . | . . . . . . . . . . . . . . . . Hacking | -11 -10 -10 -10 -9 -8 -8 -7 -7 -6 -6 -6 -6 -5 -5 -4 --------- Run | Yrd Mat Min Exi Min Mat Sto Fac DSF Fac Low Low Zio Pro Fac Fac Machines Accessed 23 | . 2 1 4 . 5 4 1 . 4 . 1 1 . . . Terminals 12 | . 2 1 . . 4 3 1 . 1 . . . . . . Fabricators 1 | . . . . . . . . . 1 . . . . . . Repair Stations . | . . . . . . . . . . . . . . . . Recycling Units 2 | . . . . . 1 1 . . . . . . . . . Scanalyzers 2 | . . . . . . . . . 2 . . . . . . Garrison Access . | . . . . . . . . . . . . . . . . Total Hacks 94 | . 7 2 49 . 15 8 1 . 9 . 1 2 . . . Successful 75 | . 2 1 49 . 12 4 1 . 3 . 1 2 . . . Failed 19 | . 5 1 . . 3 4 . . 6 . . . . . . Catastrophic 3 | . 2 . . . . 1 . . . . . . . . . Database Lockouts . | . . . . . . . . . . . . . . . . Manual 16 | . 6 1 . . 7 . . . . . . 2 . . . Terminals 32 | . 7 2 . . 14 6 1 . 2 . . . . . . Fabricators 2 | . . . . . . . . . 2 . . . . . . Repair Stations . | . . . . . . . . . . . . . . . . Recycling Units 3 | . . . . . 1 2 . . . . . . . . . Scanalyzers 5 | . . . . . . . . . 5 . . . . . . Garrison Access . | . . . . . . . . . . . . . . . . Terminal Hacks 65 | . 1 1 49 . 7 2 1 . 1 . 1 2 . . . Record 54 | . . 1 49 . 4 . . . . . . . . . . Part Schematic 2 | . . . . . . . . . . . . 2 . . . Open Door 3 | . . . . . . 2 . . . . 1 . . . . Open DSF 2 | . . . . . . . 1 . 1 . . . . . . Alert Level 1 | . 1 . . . . . . . . . . . . . . Locate Traps 1 | . . . . . 1 . . . . . . . . . . Investigation Status 1 | . . . . . 1 . . . . . . . . . . Zone Layout 1 | . . . . . 1 . . . . . . . . . . Fabricator Hacks . | . . . . . . . . . . . . . . . . Repair Station Hacks . | . . . . . . . . . . . . . . . . Recycling Unit Hacks 3 | . . . . . 1 2 . . . . . . . . . Report Inventory 2 | . . . . . 1 1 . . . . . . . . . Retrieve Components 1 | . . . . . . 1 . . . . . . . . . Scanalyzer 2 | . . . . . . . . . 2 . . . . . . Retrieve Study 2 | . . . . . . . . . 2 . . . . . . Garrison Access Hacks . | . . . . . . . . . . . . . . . . Unauthorized Hacks 5 | . 1 . . . 4 . . . . . . . . . . Terminals 5 | . 1 . . . 4 . . . . . . . . . . Botnet 5 | . 1 . . . 4 . . . . . . . . . . Fabricators . | . . . . . . . . . . . . . . . . Repair Stations . | . . . . . . . . . . . . . . . . Recycling Units . | . . . . . . . . . . . . . . . . Scanalyzers . | . . . . . . . . . . . . . . . . Garrison Access . | . . . . . . . . . . . . . . . . Data Cores Recovered . | . . . . . . . . . . . . . . . . Used . | . . . . . . . . . . . . . . . . Hacking Detections 13 | . 2 1 . . 3 3 . . 4 . . . . . . Full Trace Events 5 | . 2 . . . 1 1 . . 1 . . . . . . Feedback Events 1 | . . . . . 1 . . . . . . . . . . Corruption 1 | . . . . . 1 . . . . . . . . . . Feedback Blocked . | . . . . . . . . . . . . . . . . Robot Schematics Acquired 3 | . . . . . . . . . . . . 3 . . . Robots Built . | . . . . . . . . . . . . . . . . Authchips . | . . . . . . . . . . . . . . . . Time . | . . . . . . . . . . . . . . . . Total Robot Build Rating . | . . . . . . . . . . . . . . . . Part Schematics Acquired 17 | . . . . . . . . . . . . 17 . . . Parts Built . | . . . . . . . . . . . . . . . . Authchips . | . . . . . . . . . . . . . . . . Time . | . . . . . . . . . . . . . . . . Total Part Build Rating . | . . . . . . . . . . . . . . . . Part Studies Acquired 2 | . . . . . . . . . 2 . . . . . . Parts Repaired . | . . . . . . . . . . . . . . . . Time . | . . . . . . . . . . . . . . . . Parts Recycled . | . . . . . . . . . . . . . . . . Recycled Matter . | . . . . . . . . . . . . . . . . Retrieved Matter . | . . . . . . . . . . . . . . . . Retrieved Components 2 | . . . . . . 2 . . . . . . . . . Parts Scanalyzed . | . . . . . . . . . . . . . . . . Part Schematics Acquired . | . . . . . . . . . . . . . . . . Parts Damaged . | . . . . . . . . . . . . . . . . Bothacking | -11 -10 -10 -10 -9 -8 -8 -7 -7 -6 -6 -6 -6 -5 -5 -4 ------------ Run | Yrd Mat Min Exi Min Mat Sto Fac DSF Fac Low Low Zio Pro Fac Fac Used RIF Installer . | . . . . . . . . . . . . . . . . Robots Hacked 2 | . . . . . . . . . . . 2 . . . . Non-combat 2 | . . . . . . . . . . . 2 . . . . Combat . | . . . . . . . . . . . . . . . . Robot Hacks Applied 2 | . . . . . . . . . . . 2 . . . . parse_system 2 | . . . . . . . . . . . 2 . . . . Relay Couplers Released 4 | . . . . . . . . . 4 . . . . . . Programmers 4 | . . . . . . . . . 4 . . . . . . Fabnet Peak Effective % . | . . . . . . . . . . . . . . . . Robots Rewired 5 | . . . . . . . . . . . 3 . 2 . . Allies Hacked . | . . . . . . . . . . . . . . . . Hacks Repelled . | . . . . . . . . . . . . . . . . Allies | -11 -10 -10 -10 -9 -8 -8 -7 -7 -6 -6 -6 -6 -5 -5 -4 -------- Run | Yrd Mat Min Exi Min Mat Sto Fac DSF Fac Low Low Zio Pro Fac Fac Total Allies 10 | . . . . 1 . . . . . . 3 4 2 . . Largest Group 7 | . . . . 1 1 . . . . . 3 7 7 . . Highest-Rated Group 245 | . . . . 31 31 . . . . . 87 245 245 . . Highest-Rated Ally 41 | . . . . 31 31 . . . . . 29 41 41 . . Total Orders 16 | . . . . . . 7 . . . . 4 . 5 . . ROAM 2 | . . . . . . 2 . . . . . . . . . FOLLOW 1 | . . . . . . . . . . . 1 . . . . GUARD 7 | . . . . . . . . . . . 3 . 4 . . AID 1 | . . . . . . . . . . . . . 1 . . EXPLORE 5 | . . . . . . 5 . . . . . . . . . Ally Attacks 121 | . . . . . 11 . . . . . . . 110 . . Total Damage 2873 | . . . . . 151 . . . . . . . 2722 . . Kills 13 | . . . . . 2 . . . . . . . 11 . . Allies Corrupted . | . . . . . . . . . . . . . . . . Allies Melted . | . . . . . . . . . . . . . . . . Intel | -11 -10 -10 -10 -9 -8 -8 -7 -7 -6 -6 -6 -6 -5 -5 -4 ------- Run | Yrd Mat Min Exi Min Mat Sto Fac DSF Fac Low Low Zio Pro Fac Fac Active Infowar (turns) 5085 | . . 261 618 486 . . 18 13 576 559 943 1189 359 . 63 Sensors 4124 | . . 261 618 486 . . . . 101 401 943 1189 125 . . Terrain 63 | . . . . . . . . . . . . . . . 63 Traps 3656 | . . . . . . . 18 13 576 558 943 1189 359 . . Robot Analysis Total . | . . . . . . . . . . . . . . . . Derelict Logs Recovered 5 | . . 1 . 1 . . . . . 1 1 . 1 . . Drone Launches 20 | . . . . . . 20 . . . . . . . . . Drone Recoveries 4 | . . . . . . 4 . . . . . . . . . Exploration | -11 -10 -10 -10 -9 -8 -8 -7 -7 -6 -6 -6 -6 -5 -5 -4 ------------- Run | Yrd Mat Min Exi Min Mat Sto Fac DSF Fac Low Low Zio Pro Fac Fac Turns Passed 8844 | 60 147 461 618 499 212 454 18 153 722 559 943 1189 1941 91 777 Spaces Moved 6335 | 41 133 447 614 360 114 229 17 131 541 482 775 965 1085 39 362 Core 77 | 9 . . . . . 31 17 5 7 . . . . . 8 Treads 833 | . . . . . . . . . 11 . . . 614 39 169 Legs 110 | 32 . . . . 68 10 . . . . . . . . . Wheels 5262 | . 133 447 614 360 46 188 . 126 523 482 775 965 471 . 132 Hover 53 | . . . . . . . . . . . . . . . 53 Flight . | . . . . . . . . . . . . . . . . Fastest Speed 50 | 50 100 100 100 100 115 100 100 100 90 90 105 105 105 160 90 Average Speed 117 | 116 100 100 100 101 159 120 100 106 102 105 105 105 163 160 138 Slowest Speed 500 | 150 100 100 100 115 190 250 100 115 500 135 105 105 240 160 310 Overloaded Moves . | . . . . . . . . . . . . . . . . Propulsion Burnouts . | . . . . . . . . . . . . . . . . Robots Hopped . | . . . . . . . . . . . . . . . . Potential Cave-ins 16 | . . . . 16 . . . . . . . . . . . Cave-ins Triggered 5 | . . . . 4 . 1 . . . . . . . . . Exploration Rate (%) 46 | 3 30 96 92 28 14 50 1 82 16 57 77 88 98 2 13 Regions Visited 15 Branch Regions 8 Pre-discovered Areas 3 | . . . 1 . . . . . . . . 2 . . . Known Exits Taken 7 | . . . . . . . 1 . 1 1 1 1 1 1 . Unknown Exits Taken 7 | 1 1 1 1 1 1 1 . . . . . . . . . Scrap Searched 6 | . . 1 . . . . . . . 2 . 1 2 . . Spaces Dug 53 | . . . . 29 7 7 . . . 5 1 . . 1 3 Terrain Destroyed 157 | . . . . 29 7 9 . . . 5 1 . 15 5 86 Melee 40 | . . . . 19 7 6 . . . 5 1 . . 1 1 Projectile 84 | . . . . 10 . 3 . . . . . . 15 4 52 AOE 33 | . . . . . . . . . . . . . . . 33 Terrain Rammed . | . . . . . . . . . . . . . . . . Walls Destroyed . | . . . . . . . . . . . . . . . . Machines Disabled . | . . . . . . . . . . . . . . . . Actions | -11 -10 -10 -10 -9 -8 -8 -7 -7 -6 -6 -6 -6 -5 -5 -4 --------- Run | Yrd Mat Min Exi Min Mat Sto Fac DSF Fac Low Low Zio Pro Fac Fac Total 7285 | 50 145 457 618 421 141 335 18 142 646 515 899 1140 1177 52 529 Wait 331 | . . 6 . 10 . 16 . . 31 3 56 162 10 3 34 Move 6317 | 40 132 446 613 356 113 228 16 130 540 481 774 964 1084 38 362 Hop . | . . . . . . . . . . . . . . . . Pick Up 83 | 4 7 1 1 2 9 2 . 7 16 6 2 2 10 2 12 Fast Attach 46 | 6 1 . . . . 6 . 3 7 . 1 5 1 1 15 Attach 61 | . . 1 . 2 6 2 2 2 10 8 1 . 11 . 16 Detach 1 | . . . . . . . . . . 1 . . . . . Swap 27 | . 3 . 1 4 . 2 . . 3 1 . 1 7 . 5 Drop 48 | . 2 1 2 . 6 5 . . 2 2 . 6 3 1 18 Fire 228 | . . 2 . 22 . 53 . . 37 8 4 . 36 6 60 Melee 52 | . . . . 22 7 6 . . . 5 3 . 1 1 7 Ram . | . . . . . . . . . . . . . . . . Kick . | . . . . . . . . . . . . . . . . Crush . | . . . . . . . . . . . . . . . . Escape Stasis 11 | . . . . 3 . 8 . . . . . . . . . Rewire 73 | . . . 1 . . . . . . . 58 . 14 . . Trap . | . . . . . . . . . . . . . . . . Miscellaneous 7 | . . . . . . 7 . . . . . . . . . Route ------- -11/Scrapyard -10/Materials -10/Mines (discovered 3 exits: [*Mat x2] / *Exi) -10/Exiles (discovered 2 exits: [*Min x2]) -9/Mines -8/Materials -8/Storage -7/Factory -7/DSF -6/Factory -6/Lower Caves -6/Lower Caves (discovered 2 exits: *Fac / *Zio) -6/Zion (discovered 2 exits: Dee / *Pro) -5/Proximity Caves -5/Factory (discovered 2 exits: *Fac / Upp) -4/Factory History --------- Turn | Location | Event 12 | -11/Scrapyard | Discovered new exit (range 15) 61 | -11/Scrapyard | Entered Materials 172 | -10/Materials | Discovered new exit (range 15) 208 | -10/Materials | Entered Mines 269 | -10/Mines | Learned Materials non-interactive machine intel 309 | -10/Mines | Build established: Mutant 334 | -10/Mines | Discovered new exit (range 6) 392 | -10/Mines | Discovered new exit (range 6) 532 | -10/Mines | Found a Scrap Suit stashed away for nefarious purposes 535 | -10/Mines | Found Scrap Suit 665 | -10/Mines | Deemed a non-threat by the Exiles lab entrance 665 | -10/Mines | Discovered new exit (range 5) 669 | -10/Mines | Entered Exiles 669 | -10/Exiles | Found Exiles lab destroyed 901 | -10/Exiles | Learned location of Zion (-6) 949 | -10/Exiles | Discovered new exit (range 14) 1160 | -10/Exiles | Discovered new exit (range 14) 1287 | -10/Exiles | Entered Mines 1333 | -9/Mines | Met a Derelict bent on vengeance 1376 | -9/Mines | Assembled infested the area 1683 | -9/Mines | Crushed by falling debris 1685 | -9/Mines | Crushed by falling debris 1685 | -9/Mines | Core integrity fell below 50% 1688 | -9/Mines | Crushed by falling debris 1710 | -9/Mines | Discovered new exit (range 15) 1717 | -9/Mines | Learned 4 Materials zone layouts 1723 | -9/Mines | Received a Mining Laser from a helpful Derelict 1773 | -9/Mines | Crushed by falling debris 1774 | -9/Mines | Core integrity fell below 20% 1774 | -9/Mines | System corruption reached 10% 1786 | -9/Mines | Entered Materials 1786 | -8/Materials | Accompanied by 1 ally 1786 | -8/Materials | Evolved 4 slots: Propulsion x1, Utility x2, Weapon x1 1788 | -8/Materials | Loaded intel: 32 non-interactive machine locations 1791 | -8/Materials | Discovered new exit (range 8) 1998 | -8/Materials | Entered Storage 2041 | -8/Storage | Crushed by falling debris 2179 | -8/Storage | Lost 7 allies 2275 | -8/Storage | Lost 5 allies 2359 | -8/Storage | Lost 4 allies 2429 | -8/Storage | Core integrity fell below 50% 2429 | -8/Storage | Discovered new exit (range 16) 2452 | -8/Storage | Entered Factory 2452 | -7/Factory | Evolved 2 slots: Propulsion x1, Weapon x1 2467 | -7/Factory | Identified exit to DSF 2470 | -7/Factory | Entered DSF 2473 | -7/DSF | Lost 10 parts (2p3n3u2w) 2499 | -7/DSF | Additional patrols routed to DSF 2605 | -7/DSF | Discovered new exit (range 14) 2623 | -7/DSF | Entered Factory 2623 | -6/Factory | Evolved 2 slots: Power x1, Utility x1 2636 | -6/Factory | Lost 3 parts (3w) 2897 | -6/Factory | Lost 4 parts (1p1n2w) 3041 | -6/Factory | Spotted B-75 Beast 3338 | -6/Factory | Discovered new exit (range 7) 3344 | -6/Factory | Identified exit to Lower Caves 3345 | -6/Factory | Entered Lower Caves 3374 | -6/Lower Caves | Learned Factory stockpile data 3515 | -6/Lower Caves | Build established: Scavenger-Skirmisher 3564 | -6/Lower Caves | Lost 4 parts (2p1n1w) 3845 | -6/Lower Caves | Discovered new exit (range 10) 3865 | -6/Lower Caves | Found Alien Artifact 3875 | -6/Lower Caves | Identified Core Expander 3875 | -6/Lower Caves | Installed Core Expander, added new Power slot 3888 | -6/Lower Caves | Identified exit to Lower Caves 3904 | -6/Lower Caves | Entered another Lower Caves area 4046 | -6/Lower Caves | Learned Factory stockpile data 4083 | -6/Lower Caves | Attacked by a delusional Derelict stockpiling Unaware 4153 | -6/Lower Caves | Build established: Scavenger-Assassin 4253 | -6/Lower Caves | Discovered new exit (range 13) 4595 | -6/Lower Caves | Discovered new exit (range 14) 4609 | -6/Lower Caves | Identified exit to Factory 4824 | -6/Lower Caves | Identified exit to Zion 4847 | -6/Lower Caves | Entered Zion 4847 | -6/Zion | Accompanied by 3 allies 4887 | -6/Zion | System corruption cleaned by Quarantine Array 4928 | -6/Zion | Found CR-A16's Pointy Stick 4945 | -6/Zion | Discovered new exit (range 11) 4959 | -6/Zion | Identified exit to Proximity Caves 5133 | -6/Zion | Received a hallucinogenic algorithm 5133 | -6/Zion | Ran a hallucination algorithm 5137 | -6/Zion | Ran a hallucination algorithm 5215 | -6/Zion | Found Prototype Energy Gun 5215 | -6/Zion | Identified Storm Laser 5288 | -6/Zion | Identified exit to Deep Caves 5378 | -6/Zion | Met Imprinter 5400 | -6/Zion | Imprinted 5402 | -6/Zion | Declared Zion's savior 5635 | -6/Zion | Learned location of Armory (-4) 6036 | -6/Zion | Entered Proximity Caves 6036 | -5/Proximity Caves | Accompanied by 7 allies 6120 | -5/Proximity Caves | Learned 4 Factory zone layouts 6241 | -5/Proximity Caves | Attracted the attention of an 0b10 outpost 6417 | -5/Proximity Caves | Lost 3 allies 6589 | -5/Proximity Caves | Spotted B-75 Beast 6686 | -5/Proximity Caves | Destroyed B-75 Beast 6715 | -5/Proximity Caves | Lost 7 parts (1p2n1u3w) 6980 | -5/Proximity Caves | Build established: Scavenger-Mutant 7744 | -5/Proximity Caves | Discovered exit to Factory (range 14) 7921 | -5/Proximity Caves | Build established: Scavenger-Tank 7977 | -5/Proximity Caves | Entered Factory 7977 | -5/Factory | Evolved 2 slots: Utility x2 7978 | -5/Factory | Identified exit to Factory 7978 | -5/Factory | Identified exit to Upper Caves 8068 | -5/Factory | Entered another Factory area 8068 | -4/Factory | Evolved 2 slots: Utility x1, Weapon x1 8426 | -4/Factory | Build established: Scavenger-Gunner 8560 | -4/Factory | Core integrity fell below 50% 8613 | -4/Factory | Lost 18 parts (6p2n4u6w) 8647 | -4/Factory | Found Quantum Capacitor 8703 | -4/Factory | Core integrity fell below 20% 8799 | -4/Factory | Lost 7 parts (1n4u2w) 8845 | -4/Factory | Destroyed by G-73 Enforcer with Phase Gun Last Messages --------------- 08704_ Critical hit (Burn: +50). 08704_ R-10 Processor inserts Med. Treads into recycling unit. 08705_ Critical hit (Burn: +50). 08707_ R-10 Processor inserts Med. Treads into recycling unit. 08708_ Hvy. Wave Gun destroyed. 08712_ Critical hit (Burn: +50). 08719_ Lrg. Storage Unit destroyed. 08721_ Dropped Adv. Field Recycling Unit. 08722_ Acquired Imp. Remote Datajack. 08745_ Hvy. Wave Gun destroyed. 08766_ Arm. Huge Wheel+ destroyed. 08768_ Adv. Heat Sink destroyed. 08768_ Imp. Terrain Scan Processor destroyed. 08768_ Critical hit (Blast). 08771_ T-07 Excavator destroyed. 08786_ ALERT: Cargo convoy en route, clear transfer corridor. 08815_ U-05 Engineer builds a Wall. 08818_ K-01 Serf cleans the Fusion Modulator. 08828_ Imp. Heavy Treads destroyed. 08828_ Critical hit (Burn: +50). Map ----- +----------------------------------------------------+ | | | | | | | ????????????????????????????????????????????###### | | ????????????????????????????????????????????# | | ????????????????????????????????????????????# | | ??????????????????????????????????########### | | ??????????????????????????????????# ] # | | ??????????????????????????????????# # | | ??????????????????????????????????? # | | ??????????????????????????????????? # | | ????????????????????????????????????""" """ # | | ????????????????????????????????????""" """ +! | | ??????????????????????????????????# """ """ # | | ??????????????????????????????????# # | | ????????????????????#######################/###### | | ????????????????????# ! | | ????????????????????# % |%= | | ????????????????????# % | | ????????????????????# | | ????????????????????# | | ????????????????????# ##########/############# | | ????????????????????# # # #??????? | | ????????????????????# # """ # #??????? | | ????????????????????# # """ # #??????? | | ????????????????????# @# """ # #??????? | | ????????????????????# kg # #??????? | | ????????????????????# # """ # """" #??????? | | ????????????????????# # """ # """" #??????? | | ????????????????????# # """ # """" #??????? | | ????????????????????# # # """" #??????? | | ????????????????????# ####g##### """" #??????? | | ????????????????????+ #??#g#???# """" #??????? | | ????????????????????# #??# #???# """" #??????? | | ????????????????????# #??# #???# #??????? | | ????????????????????# #### #???# #??????? | | ????????????????????# #######+#########?# | | ????????????????????# ## # # | | ????????????????????# ^""" ## ! # + | | ????????????????????# ^ """ # # " | | ????????????????????# """ + # # | | ????????????????????# # #?# | | ????????????????????# # # # | | ??????????????##????# ^ ####+###########[# | | ????????????### ##### """ # | | #############"""*[=## """ =# | | # + %==[ """ # | | # ##"!%=## ^ "" | | # " " ########% "" #"######## | | # " " #??????# ###+########????? | +----------------------------------------------------+ Best States ------------- Heat Dissipation 81 Energy Generation 59 Energy Capacity 720 Matter Stores 300 Matter Capacity 300 Sight Range 16 Robot Scan Range 19 Terrain Scan Range 16 Terrain Scan Density 110 Additional Mass Support 9 EM Shielding 2 Armor Coverage 600 Power Shielding 33 Evasion (%) 55 Targeting Accuracy 6 Recoil Reduction 10 Particle Charging 20 Item Schematics ----------------- Riot Gun | -6/Zion | Free Flamer | -6/Zion | Free Hardcell Cannon | -6/Zion | Archive Adv. Terrain Scanner | -6/Zion | Archive Antigrav System | -6/Zion | Archive Imp. Hardlight Generator | -6/Zion | Archive Adv. Plasma Cannon | -6/Zion | Archive Hvy. Machine Gun | -6/Zion | Archive Imp. Focal Shield | -6/Zion | Archive Adv. Melee Analysis Suite | -6/Zion | Archive Tesla Rifle | -6/Zion | Archive Imp. Proton Missile Launcher | -6/Zion | Archive Imp. Antigrav System | -6/Zion | Archive Remote Force Field | -6/Zion | Archive Energy Well | -6/Zion | Archive Magnetic Acceleration Cannon | -6/Zion | Archive Neutrino Core | -6/Zion | Archive Robot Schematics ------------------ T-07 Excavator | -6/Zion | Archive A-02 Transporter | -6/Zion | Archive A-15 Conveyor | -6/Zion | Archive Fabricated ------------ Nothing Repaired ---------- Nothing Studied --------- Arm. Huge Wheel | -6/Factory | Hacked Com. Wheel | -6/Factory | Hacked Alien Tech Used ----------------- Core Expander Achievements -------------- A New Friend Alien Tech Backstab I'm Back, Baby! Release The Drones! The More The Merrier Window Shopping Challenges ------------ None Game ------ Seed BehemothBiocellObliterator Manual? 0 Play Time 02:01:20 Cumulative 31.9 hours Start 2026.08.03 @ 14:17:29 End 2026.08.03 @ 18:38:27 Sessions 1 Manual Loads 0 Difficulty Rogue Special Mode None Game No. 26 Rogue 24 Adventurer 2 Explorer 0 Win Type - Total 0 Types 0/0/0/0/0/0/0/0/0/0 Lore% 24 Gallery% 22 Achievement% 19 Wizard Run 0 Options --------- Layout 0 ASCII 0 Keyboard 0 Movement Mouse Keybinds 0 Fullscreen 2 Font 24/Smallcaps Map View 76x50 Zoom Use 0% Tactical HUD 1 Map Filters NONE Filters NONE Steam 1 RUN: 74caadd7-8c6f-4c2a-9291-6991ddf813b0